bitfinex/quotes_BTCUSD_20241010
["timestamp","ask_amount","ask_price","bid_price","bid_amount"]
[1728584775760,1.6912783,58989.0,58988.0,0.000213]
[1728584776204,1.7112783,58989.0,58988.0,0.000213]
[1728584776469,1.7142783,58989.0,58988.0,0.000213]
[1728584776690,0.4781783,58989.0,58988.0,0.000213]
[1728584776902,0.4671783,58989.0,58988.0,0.000213]
[1728584777163,0.4661783,58989.0,58988.0,0.000213]
[1728584777370,0.63204849,58989.0,58988.0,0.000213]
[1728584777995,0.4721783,58989.0,58988.0,0.000213]
[1728584778205,0.4701783,58989.0,58988.0,0.000213]
[1728584778660,0.4731783,58989.0,58988.0,0.000213]
[1728584779094,0.4701783,58989.0,58988.0,0.000213]
[1728584779308,0.4691783,58989.0,58988.0,0.000213]
[1728584779580,0.640621,58989.0,58988.0,0.000213]
[1728584779785,0.638249,58989.0,58988.0,0.000213]
[1728584780036,1.6899063,58989.0,58988.0,0.000213]
[1728584780250,1.6909063,58989.0,58988.0,0.000213]
[1728584780474,1.6929063,58989.0,58988.0,0.000213]
[1728584780701,1.6979063,58989.0,58988.0,0.000213]
[1728584780908,1.6929063,58989.0,58988.0,0.000213]
[1728584781190,1.7109063,58989.0,58988.0,0.000213]
[1728584781403,1.7079063,58989.0,58988.0,0.000213]
[1728584781612,1.7129063,58989.0,58988.0,0.000213]
[1728584782271,1.7079063,58989.0,58988.0,0.000213]
[1728584782484,1.7109063,58989.0,58988.0,0.001213]
[1728584782692,1.7079063,58989.0,58988.0,0.001213]
[1728584782906,1.7129063,58989.0,58988.0,0.002213]
[1728584783104,1.7079063,58989.0,58988.0,0.002213]
[1728584784648,1.882349,58989.0,58988.0,0.002213]
[1728584785550,0.62503625,58988.0,58987.0,0.000816]
[1728584785766,0.79434555,58988.0,58987.0,0.000816]
[1728584786412,0.79634555,58988.0,58987.0,0.000816]
[1728584786651,0.4741813,58988.0,58987.0,0.000816]
[1728584786869,0.97078825,58988.0,58987.0,0.000316]
[1728584787563,0.97278825,58988.0,58987.0,0.000316]
[1728584787782,0.97078825,58988.0,58987.0,0.000316]
[1728584788022,0.80134555,58988.0,58987.0,0.000316]
[1728584788460,2.02944555,58988.0,58987.0,0.000316]
[1728584789776,2.05244555,58988.0,58987.0,0.000316]
[1728584790665,2.02944555,58988.0,58987.0,0.000316]
[1728584791604,2.19888825,58988.0,58987.0,0.000316]
[1728584791827,2.02744555,58988.0,58987.0,0.000316]
[1728584792279,2.05044555,58988.0,58987.0,0.000316]
[1728584793620,2.04344555,58988.0,58987.0,0.000316]
[1728584793831,2.05244555,58988.0,58987.0,0.000316]
[1728584794063,2.04544555,58988.0,58987.0,0.000316]
[1728584794277,2.21488825,58988.0,58987.0,0.000316]
[1728584794498,2.22388825,58988.0,58987.0,0.000316]
[1728584794955,2.20588825,58988.0,58987.0,0.000316]
[1728584795171,2.21388825,58988.0,58987.0,0.000316]
[1728584795413,2.22188825,58988.0,58987.0,0.000316]
[1728584795634,2.20588825,58988.0,58987.0,0.000316]
[1728584795844,1.7092813,58988.0,58987.0,0.000316]
[1728584796067,1.7199353,58988.0,58987.0,0.000316]
[1728584796272,1.7129353,58988.0,58987.0,0.000316]
[1728584796698,1.7209353,58988.0,58987.0,0.000316]
[1728584796940,1.7129353,58988.0,58987.0,0.000316]
[1728584797158,0.1763093,58988.0,58987.0,0.079816]
[1728584797360,0.1763093,58988.0,58987.0,0.249344]
[1728584797617,0.1693093,58988.0,58987.0,0.25963753]
[1728584797834,0.1693093,58988.0,58987.0,0.44183753]
[1728584798053,0.001628,58989.0,58988.0,0.17118]
[1728584798486,0.001628,58989.0,58988.0,0.17981008]
[1728584798912,0.1709373,58989.0,58988.0,0.17981008]
[1728584799131,0.001628,58989.0,58988.0,0.17981008]
[1728584799823,0.1709373,58989.0,58988.0,0.00863008]
[1728584800245,0.1709373,58989.0,58988.0,0.169526]
[1728584800451,0.1709373,58989.0,58988.0,0.17981008]
[1728584800724,0.22278089,58989.0,58988.0,0.17981008]
[1728584800964,0.22278089,58989.0,58988.0,0.00863008]
[1728584801194,0.22778089,58989.0,58988.0,0.001]
[1728584801412,0.22778089,58989.0,58988.0,0.170526]
[1728584802023,0.23478089,58989.0,58988.0,0.170526]
[1728584802264,0.23478089,58989.0,58988.0,0.001]
[1728584802504,0.23478089,58989.0,58988.0,0.170526]
[1728584802731,0.53946953,58989.0,58988.0,0.001]
[1728584802971,0.55467733,58989.0,58988.0,0.001]
[1728584803420,0.55467733,58989.0,58988.0,0.001814]
[1728584803678,0.53167733,58989.0,58988.0,0.001814]
[1728584803892,0.42467733,58989.0,58988.0,0.001814]
[1728584804116,0.42467733,58989.0,58988.0,0.000814]
[1728584804117,0.40751169,58989.0,58988.0,0.000814]
[1728584804351,0.41967922,58989.0,58988.0,0.000814]
[1728584804562,0.41051169,58989.0,58988.0,0.000814]
[1728584805002,0.40751169,58989.0,58988.0,0.000814]
[1728584805246,0.40751169,58989.0,58988.0,0.002814]
[1728584805716,0.39690124,58989.0,58988.0,0.002814]
[1728584806210,0.43206875,58989.0,58988.0,0.002814]
[1728584806416,0.6447481,58989.0,58988.0,0.002814]
[1728584806839,0.53206875,58989.0,58988.0,0.002814]
[1728584807333,0.53206875,58989.0,58988.0,0.000814]
[1728584807564,0.54206703,58989.0,58988.0,0.000814]
[1728584807779,0.52685923,58989.0,58988.0,0.000814]
[1728584808008,0.50185923,58989.0,58988.0,0.000814]
[1728584809196,0.50685923,58989.0,58988.0,0.000814]
[1728584809677,0.48669344,58989.0,58988.0,0.000814]
[1728584810131,0.48969344,58989.0,58988.0,0.000814]
[1728584810345,0.48669344,58989.0,58988.0,0.000814]
[1728584810558,0.50389562,58989.0,58988.0,0.000814]
[1728584810802,0.51169344,58989.0,58988.0,0.000814]
[1728584811039,0.50669344,58989.0,58988.0,0.000814]
[1728584811262,0.50869344,58989.0,58988.0,0.000814]
[1728584811688,0.50669344,58989.0,58988.0,0.000814]
[1728584812162,0.50969344,58989.0,58988.0,0.000814]
[1728584812658,0.50769344,58989.0,58988.0,0.000814]
[1728584812880,0.51169344,58989.0,58988.0,0.000814]
[1728584813089,0.50769344,58989.0,58988.0,0.000814]
[1728584814187,0.50769167,58989.0,58988.0,0.000814]
[1728584814618,0.51069167,58989.0,58988.0,0.000814]
[1728584815057,0.50769167,58989.0,58988.0,0.000814]
[1728584815289,0.50769167,58989.0,58988.0,0.002814]
[1728584815760,0.83185592,58989.0,58988.0,0.002854]
[1728584815975,0.83185592,58989.0,58988.0,0.000854]
[1728584816211,0.83685592,58989.0,58988.0,0.000854]
[1728584816461,0.83385592,58989.0,58988.0,0.000854]
[1728584816688,0.80522649,58989.0,58988.0,0.000854]
[1728584816926,0.81222649,58989.0,58988.0,0.000854]
[1728584817178,0.80522649,58989.0,58988.0,0.000854]
[1728584817419,0.51169167,58989.0,58988.0,0.000854]
[1728584817669,0.50669167,58989.0,58988.0,0.000854]
[1728584817957,0.21216867,58989.0,58988.0,0.000854]
[1728584818209,0.24261764,58989.0,58988.0,0.44628]
[1728584818429,0.24261764,58989.0,58988.0,0.276754]
[1728584818430,0.21616867,58989.0,58988.0,0.276754]
[1728584818637,0.21616867,58989.0,58988.0,0.44628]
[1728584818638,0.21216867,58989.0,58988.0,0.44628]
[1728584818858,0.21216867,58989.0,58988.0,0.44828]
[1728584819095,0.21216867,58989.0,58988.0,0.278754]
[1728584819325,0.4,58998.0,58988.0,0.278754]
[1728584819326,0.4,58998.0,58997.0,0.1695]
[1728584819546,0.4,58998.0,58997.0,0.84148882]
[1728584819799,0.1167,58998.0,58997.0,0.84648882]
[1728584820272,0.1167,58998.0,58997.0,0.442954]
[1728584821267,0.3389,59015.0,58997.0,0.442954]
[1728584821268,0.59296378,59022.0,58997.0,0.5542926]
[1728584821490,0.25410378,59008.0,58999.0,0.276148]
[1728584821706,0.25410378,59008.0,58999.0,0.46968282]
[1728584822401,0.1698093,59000.0,58999.0,0.46968282]
[1728584822631,0.1698093,59000.0,58999.0,0.46972282]
[1728584823062,0.1708093,59000.0,58999.0,0.47372282]
[1728584823980,0.0025,59000.0,58999.0,0.47672282]
[1728584824444,0.25410378,59014.0,59013.0,0.171108]
[1728584824655,0.42341308,59014.0,59013.0,0.46964282]
[1728584824878,0.1693093,59014.0,59008.0,0.001654]
[1728584825122,0.59296378,59022.0,59008.0,0.001654]
[1728584825123,0.1693093,59013.0,59008.0,0.001654]
[1728584825363,0.1693093,59013.0,59012.0,0.169457]
[1728584825595,0.1693093,59013.0,59012.0,0.46964582]
[1728584825816,0.1,59027.0,59015.0,0.001654]
[1728584826037,0.25410378,59022.0,59021.0,0.46796582]
[1728584826288,0.1693093,59022.0,59021.0,0.46796582]
[1728584827908,0.25410378,59034.0,59027.0,0.001654]
[1728584828146,0.1693093,59033.0,59031.0,0.29853482]
[1728584828369,0.1693093,59033.0,59032.0,0.169399]
[1728584829503,0.1693093,59033.0,59030.0,0.169402]
[1728584829754,1.2441,59042.0,59021.0,0.339898]
[1728584829755,0.1923093,59032.0,59023.0,0.338845]
[1728584830014,0.169428,59022.0,59021.0,4e-05]
[1728584830229,0.3617373,59022.0,59021.0,4e-05]
[1728584830920,2.03291822,59022.0,59021.0,4e-05]
[1728584831382,2.04866882,59022.0,59021.0,0.00104]
[1728584831613,2.04966882,59022.0,59021.0,0.00104]
[1728584831828,2.04966882,59022.0,59021.0,4e-05]
[1728584832267,2.04966882,59022.0,59021.0,0.00104]
[1728584832740,1.747788,59022.0,59021.0,0.00104]
[1728584832993,1.6225879,59022.0,59021.0,0.00104]
[1728584833468,1.4301599,59022.0,59021.0,0.00104]
[1728584833916,0.1703093,59022.0,59021.0,0.170471]
[1728584834156,0.001,59022.0,59021.0,0.172125]
[1728584834617,0.001,59022.0,59021.0,0.17549803]
[1728584834870,0.001,59022.0,59021.0,0.27449803]
[1728584835084,0.25410378,59039.0,59036.0,0.169385]
[1728584835298,0.1693093,59038.0,59036.0,0.169385]
[1728584835480,0.1693093,59038.0,59037.0,0.171039]
[1728584835985,0.1693093,59038.0,59021.0,0.00204]
[1728584835986,0.169428,59022.0,59021.0,0.00204]
[1728584836249,0.27814595,59022.0,59021.0,0.00204]
[1728584836504,0.172797,59014.0,59013.0,0.25410378]
[1728584836748,0.172797,59014.0,59007.0,0.25410378]
[1728584836749,0.192468,59008.0,59007.0,0.25410378]
[1728584836965,0.80121654,59008.0,59007.0,0.25410378]
[1728584837204,0.192491,59000.0,58999.0,4e-05]
[1728584837448,0.50270472,59000.0,58999.0,4e-05]
[1728584838103,0.50605072,59000.0,58999.0,4e-05]
[1728584838332,0.80458554,59000.0,58999.0,4e-05]
[1728584838566,0.95186257,59000.0,58999.0,4e-05]
[1728584838810,0.95520857,59000.0,58999.0,4e-05]
[1728584839727,0.95720857,59000.0,58999.0,4e-05]
[1728584839970,1.12665127,59000.0,58999.0,4e-05]
[1728584840200,0.95720857,59000.0,58999.0,4e-05]
[1728584841338,0.50470472,59000.0,58999.0,4e-05]
[1728584841565,0.38170472,59000.0,58999.0,4e-05]
[1728584841777,0.35653277,59000.0,58999.0,4e-05]
[1728584842667,0.3408003,59000.0,58999.0,4e-05]
[1728584842883,0.35656009,59000.0,58999.0,4e-05]
[1728584843323,0.35456009,59000.0,58999.0,4e-05]
[1728584843537,0.37756009,59000.0,58999.0,4e-05]
[1728584843749,0.37856009,59000.0,58999.0,4e-05]
[1728584843974,0.37756009,59000.0,58999.0,4e-05]
[1728584844912,0.37856009,59000.0,58999.0,0.00104]
[1728584847420,0.40380618,59000.0,58999.0,0.00104]
[1728584848130,0.35556009,59000.0,58999.0,0.00104]
[1728584849559,0.35456009,59000.0,58999.0,0.00104]
[1728584849776,0.35456009,59000.0,58999.0,4e-05]
[1728584850005,0.35456009,59000.0,58999.0,0.00304]
[1728584850229,0.35456009,59000.0,58999.0,0.00604]
[1728584850683,0.18506909,59000.0,58990.0,0.238828]
[1728584850923,0.44915785,58995.0,58989.0,0.339045]
[1728584851159,0.1693093,58994.0,58990.0,0.169519]
[1728584851403,0.1693093,58994.0,58989.0,0.339045]
[1728584851627,0.1693093,58994.0,58990.0,0.002]
[1728584851910,0.1693093,58994.0,58990.0,0.171517]
[1728584852146,0.169512,58993.0,58990.0,0.002]
[1728584852379,0.1693093,58992.0,58990.0,0.171518]
[1728584853072,0.1693093,58992.0,58990.0,0.002]
[1728584853310,0.1693093,58992.0,58988.0,0.000854]
[1728584853311,0.1693093,58992.0,58989.0,0.001]
[1728584853540,0.169518,58991.0,58988.0,0.000854]
[1728584853771,0.1693093,58990.0,58988.0,0.000854]
[1728584854005,0.1693093,58990.0,58989.0,0.002]
[1728584854504,0.1693093,58990.0,58988.0,0.01195299]
[1728584854505,0.1693093,58990.0,58988.0,0.000854]
[1728584854759,0.1693093,58990.0,58989.0,0.169523]
[1728584854987,0.1693093,58990.0,58988.0,0.01395299]
[1728584855224,0.1693093,58990.0,58988.0,0.000854]
[1728584855488,0.1693093,58990.0,58989.0,0.004]
[1728584855706,0.1693093,58990.0,58989.0,0.173523]
[1728584855964,0.1693093,58990.0,58989.0,0.004]
[1728584856389,0.1693093,58990.0,58989.0,0.173523]
[1728584856633,0.1693093,58990.0,58989.0,0.175523]
[1728584856853,0.1693093,58990.0,58989.0,0.002]
[1728584857087,0.1703093,58990.0,58989.0,0.002]
[1728584857312,0.1703093,58990.0,58989.0,0.171523]
[1728584857526,0.1693093,58990.0,58989.0,0.002]
[1728584857746,0.1693093,58990.0,58989.0,0.006]
[1728584858420,0.1693093,58990.0,58989.0,0.002]
[1728584858636,0.1763093,58990.0,58989.0,0.00304]
[1728584858849,0.1763093,58990.0,58989.0,0.172563]
[1728584859072,0.3458293,58990.0,58989.0,0.00304]
[1728584859286,0.3458293,58990.0,58989.0,0.00104]
[1728584859518,0.36164169,58990.0,58989.0,0.00104]
[1728584859757,0.36464169,58990.0,58989.0,0.00104]
[1728584859965,0.35464169,58990.0,58989.0,4e-05]
[1728584860180,0.37264169,58990.0,58989.0,0.00204]
[1728584860605,0.37764169,58990.0,58989.0,4e-05]
[1728584860850,0.54870988,58990.0,58989.0,0.00104]
[1728584861119,0.54570988,58990.0,58989.0,0.00104]
[1728584861347,0.53770988,58990.0,58989.0,4e-05]
[1728584861576,0.40294909,58990.0,58989.0,4e-05]
[1728584861815,0.41194909,58990.0,58989.0,0.00104]
[1728584862502,0.52394909,58990.0,58989.0,0.00204]
[1728584862938,0.50294909,58990.0,58989.0,4e-05]
[1728584863159,0.50394909,58990.0,58989.0,4e-05]
[1728584863386,0.50394909,58990.0,58989.0,0.001854]
[1728584864302,0.5039665,58990.0,58989.0,0.001854]
[1728584868080,0.5304294,58990.0,58989.0,0.001854]
[1728584868518,0.53057346,58990.0,58989.0,0.001854]
[1728584868956,0.52957346,58990.0,58989.0,0.001854]
[1728584869395,0.53157346,58990.0,58989.0,0.001854]
[1728584869648,0.52957346,58990.0,58989.0,0.001854]
[1728584869892,0.40757346,58990.0,58989.0,0.009854]
[1728584870138,0.2115909,58990.0,58989.0,0.179377]
[1728584870574,0.0422816,58990.0,58989.0,0.19054548]
[1728584870791,0.01687754,58990.0,58989.0,0.18954548]
[1728584871037,0.17112,59000.0,58999.0,0.169494]
[1728584871038,0.001628,59000.0,58999.0,0.169494]
[1728584871536,0.001628,59000.0,58999.0,0.445594]
[1728584873139,0.001628,59000.0,58999.0,0.447594]
[1728584873620,0.001628,59000.0,58999.0,0.445594]
[1728584873867,0.007628,59000.0,58999.0,0.446594]
[1728584874109,0.007628,59000.0,58999.0,0.448594]
[1728584874368,0.007628,59000.0,58999.0,0.80769778]
[1728584874592,0.001628,59013.0,59012.0,0.46944362]
[1728584874810,0.001628,59013.0,59012.0,0.436557]
[1728584876409,0.002628,59013.0,59012.0,0.439557]
[1728584876639,0.1719373,59013.0,59012.0,0.006]
[1728584876864,0.1719373,59013.0,59012.0,0.175457]
[1728584877077,0.1719373,59013.0,59012.0,0.172497]
[1728584877288,0.1719373,59013.0,59012.0,0.174497]
[1728584877537,0.1709373,59013.0,59012.0,0.171497]
[1728584877776,0.001628,59013.0,59012.0,0.171497]
[1728584877992,0.001628,59013.0,59012.0,0.173497]
[1728584878218,0.001628,59013.0,59012.0,0.178497]
[1728584878456,0.001628,59013.0,59012.0,0.36358538]
[1728584878674,0.002628,59013.0,59012.0,0.460197]
[1728584879109,0.001628,59013.0,59012.0,0.460197]
[1728584879340,0.002628,59013.0,59012.0,0.460197]
[1728584879554,0.002628,59013.0,59012.0,0.544897]
[1728584879775,0.001628,59013.0,59012.0,0.544897]
[1728584880041,0.001628,59013.0,59012.0,0.546897]
[1728584880306,0.001628,59013.0,59012.0,0.544897]
[1728584880521,0.001628,59013.0,59012.0,0.546897]
[1728584880737,0.001628,59013.0,59012.0,0.544897]
[1728584880967,0.001628,59013.0,59012.0,0.546897]
[1728584881675,0.001628,59013.0,59012.0,0.7162063]
[1728584883494,0.001628,59013.0,59012.0,0.546897]
[1728584885384,0.001628,59013.0,59012.0,0.541897]
[1728584885600,0.001628,59013.0,59012.0,0.446897]
[1728584887204,0.001628,59013.0,59012.0,0.175497]
[1728584888180,0.001628,59013.0,59012.0,0.00404]
[1728584888403,0.1709373,59013.0,59012.0,4e-05]
[1728584888864,0.1719373,59013.0,59012.0,4e-05]
[1728584889107,0.1749373,59013.0,59012.0,4e-05]
[1728584889347,0.1719373,59013.0,59012.0,4e-05]
[1728584889841,0.1769373,59013.0,59012.0,0.00104]
[1728584890074,0.1759373,59013.0,59012.0,0.00104]
[1728584890608,0.62949508,59013.0,59012.0,0.00104]
[1728584890815,0.49114199,59013.0,59012.0,0.00104]
[1728584891036,0.51634503,59013.0,59012.0,0.00104]
[1728584891286,0.50934503,59013.0,59012.0,0.00104]
[1728584891504,0.50434503,59013.0,59012.0,4e-05]
[1728584891756,0.50434503,59013.0,59012.0,0.00204]
[1728584892430,0.92280087,59013.0,59012.0,0.00204]
[1728584892666,0.169485,59002.0,59001.0,0.25410378]
[1728584892884,0.80073465,59002.0,59001.0,0.25410378]
[1728584893158,0.80073465,59002.0,58992.0,0.25420378]
[1728584893159,0.192511,58993.0,58992.0,0.25420378]
[1728584893391,0.3618203,58993.0,58992.0,0.25420378]
[1728584893618,0.37759008,58993.0,58992.0,0.01122289]
[1728584894066,0.37759008,58993.0,58992.0,0.0001]
[1728584894727,0.38559008,58993.0,58992.0,0.0001]
[1728584895200,0.41082651,58993.0,58992.0,0.0001]
[1728584895434,0.39559008,58993.0,58992.0,0.0011]
[1728584896138,0.38559008,58993.0,58992.0,0.0001]
[1728584896575,0.37859008,58993.0,58992.0,0.0081]
[1728584896829,0.37959008,58993.0,58992.0,0.0081]
[1728584897260,0.37959547,58993.0,58992.0,0.0081]
[1728584898549,0.37959547,58993.0,58992.0,0.008913]
[1728584898773,0.37959547,58993.0,58992.0,0.008953]
[1728584899916,0.18708447,58993.0,58992.0,0.008953]
[1728584900157,0.1713093,58993.0,58992.0,0.008953]
[1728584900381,0.1713093,58993.0,58992.0,0.01220954]
[1728584900601,0.1713093,58993.0,58992.0,0.02007589]
[1728584901113,0.002,58993.0,58992.0,0.18958989]
[1728584901607,0.002,58993.0,58992.0,0.19158989]
[1728584901830,0.001,58993.0,58992.0,0.18680584]
[1728584902036,0.002,58993.0,58992.0,0.18680584]
[1728584902511,0.001,58993.0,58992.0,0.19180584]
[1728584902753,0.001,58993.0,58992.0,0.29180584]
[1728584903010,0.25410378,59006.0,59005.0,0.169477]
[1728584903239,0.42341308,59006.0,59005.0,0.169477]
[1728584903715,0.1693093,59006.0,59005.0,0.169477]
[1728584904464,0.1733093,59006.0,59005.0,0.169477]
[1728584904734,0.004,59006.0,59005.0,0.169477]
[1728584904981,0.004,59006.0,59005.0,0.17786626]
[1728584905460,0.013,59006.0,59005.0,0.2788656]
[1728584905757,0.009,59006.0,59005.0,0.7009863]
[1728584905943,0.001628,59022.0,59012.0,0.176457]
[1728584906186,0.001628,59022.0,59012.0,0.57444362]
[1728584906424,0.001628,59022.0,59012.0,0.84764362]
[1728584907659,0.002628,59013.0,59012.0,0.85464362]
[1728584907880,0.002628,59013.0,59012.0,0.84964362]
[1728584908123,0.002628,59013.0,59012.0,0.178457]
[1728584908397,0.002628,59013.0,59012.0,0.186457]
[1728584908641,0.002628,59013.0,59012.0,0.178457]
[1728584908888,0.002628,59013.0,59012.0,0.182457]
[1728584909126,0.1719373,59013.0,59012.0,0.180457]
[1728584909406,0.001628,59013.0,59012.0,0.175457]
[1728584909631,0.001628,59013.0,59012.0,0.58183262]
[1728584909883,0.002628,59013.0,59012.0,0.287457]
[1728584910369,0.001628,59013.0,59012.0,0.275457]
[1728584910878,0.001628,59013.0,59012.0,0.280457]
[1728584911376,0.001628,59013.0,59012.0,0.27984567]
[1728584911617,0.001628,59013.0,59012.0,0.275457]
[1728584912319,0.001628,59013.0,59012.0,0.278457]
[1728584912559,0.001628,59013.0,59012.0,0.271457]
[1728584912843,0.001628,59013.0,59012.0,0.276457]
[1728584913307,0.001628,59013.0,59012.0,0.281457]
[1728584913542,0.001628,59013.0,59012.0,0.276457]
[1728584913776,0.001628,59013.0,59012.0,0.280457]
[1728584914247,0.001628,59013.0,59012.0,0.276457]
[1728584914513,0.001628,59013.0,59012.0,0.281457]
[1728584914960,0.001628,59013.0,59012.0,0.284457]
[1728584915198,0.001628,59013.0,59012.0,0.76914362]
[1728584915433,0.001628,59022.0,59021.0,0.47441762]
[1728584916072,0.695,59037.0,59033.0,0.171396]
[1728584916321,0.42141308,59034.0,59033.0,0.169396]
[1728584916536,0.695,59037.0,59036.0,0.169388]
[1728584916772,0.8643093,59037.0,59036.0,0.169388]
[1728584917670,0.8593093,59037.0,59036.0,0.169388]
[1728584917904,0.8593093,59037.0,59034.0,0.169393]
[1728584918162,0.8593093,59037.0,59033.0,4e-05]
[1728584918163,0.192393,59034.0,59033.0,4e-05]
[1728584918409,0.3617023,59034.0,59033.0,4e-05]
[1728584918627,0.3627023,59034.0,59033.0,4e-05]
[1728584918846,0.3617023,59034.0,59033.0,4e-05]
[1728584919067,0.37745095,59034.0,59033.0,4e-05]
[1728584919294,0.3617023,59034.0,59033.0,4e-05]
[1728584919787,0.3627023,59034.0,59033.0,0.00104]
[1728584920000,0.3397023,59034.0,59033.0,0.00104]
[1728584920218,0.1763093,59034.0,59033.0,0.00204]
[1728584920664,0.1703093,59034.0,59033.0,0.00104]
[1728584921112,0.1733093,59034.0,59033.0,0.00104]
[1728584921531,0.1733093,59034.0,59033.0,0.169436]
[1728584921532,0.1723093,59034.0,59033.0,0.169436]
[1728584921749,0.1723093,59034.0,59033.0,0.174436]
[1728584921977,0.1723093,59034.0,59033.0,0.169436]
[1728584922223,0.1739353,59034.0,59033.0,0.169436]
[1728584922484,0.1749353,59034.0,59033.0,0.169436]
[1728584922700,0.1709353,59034.0,59033.0,0.169436]
[1728584922910,0.1709353,59034.0,59033.0,0.178436]
[1728584923122,0.1769353,59034.0,59033.0,0.179436]
[1728584923614,0.001626,59034.0,59033.0,0.183436]
[1728584923874,0.001626,59034.0,59033.0,0.194436]
[1728584923875,0.002626,59034.0,59033.0,0.194436]
[1728584924101,0.002626,59034.0,59033.0,0.294436]
[1728584924102,0.002126,59034.0,59033.0,0.294436]
[1728584924592,0.002126,59034.0,59033.0,0.477336]
[1728584924819,0.002126,59034.0,59033.0,0.74750588]
[1728584925079,0.69,59037.0,59033.0,0.74750588]
[1728584925080,0.69,59037.0,59036.0,0.47437462]
[1728584925307,0.69,59037.0,59036.0,0.57437462]
[1728584925910,0.00163,59048.0,59047.0,0.363156]
[1728584926150,0.00163,59048.0,59047.0,0.66114262]
[1728584926588,0.00163,59048.0,59047.0,0.76114262]
[1728584926792,0.00163,59048.0,59047.0,0.169356]
[1728584927020,0.00163,59048.0,59039.0,0.338758]
[1728584927021,0.1709393,59048.0,59039.0,0.002]
[1728584927218,0.1709393,59048.0,59039.0,0.25610378]
[1728584927219,0.1693093,59047.0,59039.0,0.25610378]
[1728584927446,0.1693093,59047.0,59040.0,0.169375]
[1728584927680,0.338723,59046.0,59039.0,0.002]
[1728584927853,0.3386733,59045.0,59041.0,0.169372]
[1728584928054,0.3386733,59045.0,59035.0,0.338777]
[1728584928055,0.1693093,59045.0,59035.0,0.338777]
[1728584928262,0.1693093,59045.0,59039.0,0.009]
[1728584928263,0.169377,59040.0,59039.0,0.009]
[1728584928499,0.1693093,59040.0,59039.0,0.009]
[1728584928715,0.1693093,59040.0,59037.0,0.169383]
[1728584928940,0.1693093,59039.0,59038.0,0.169382]
[1728584930481,0.1753093,59039.0,59038.0,0.170382]
[1728584931134,0.1773093,59039.0,59038.0,0.171382]
[1728584931640,0.1773093,59039.0,59038.0,0.171422]
[1728584932481,0.1773093,59039.0,59038.0,0.00204]
[1728584933303,0.19310755,59039.0,59038.0,0.171422]
[1728584933751,0.1773093,59039.0,59038.0,0.173422]
[1728584933987,0.1773093,59039.0,59038.0,0.171422]
[1728584934407,0.19311527,59039.0,59038.0,0.171422]
[1728584934633,0.19311527,59039.0,59038.0,0.00204]
[1728584934884,0.19311527,59039.0,59038.0,0.171422]
[1728584935111,0.19311527,59039.0,59038.0,0.00204]
[1728584935589,0.19311527,59039.0,59038.0,0.171422]
[1728584936675,0.1723093,59039.0,59038.0,0.171422]
[1728584937317,0.1723093,59039.0,59038.0,0.173422]
[1728584937535,0.008,59039.0,59038.0,0.173422]
[1728584937743,0.0238116,59039.0,59038.0,0.173422]
[1728584938164,0.0178116,59039.0,59038.0,0.172422]
[1728584938609,0.0168116,59039.0,59038.0,0.171422]
[1728584939080,0.0158116,59039.0,59038.0,0.171422]
[1728584939328,0.0158116,59039.0,59038.0,0.172422]
[1728584939557,0.0168116,59039.0,59038.0,0.172422]
[1728584940464,0.0168116,59039.0,59038.0,0.171422]
[1728584940705,0.001,59039.0,59038.0,0.171422]
[1728584940929,0.01682188,59039.0,59038.0,0.171422]
[1728584941887,0.01582188,59039.0,59038.0,0.171422]
[1728584942100,0.0253002,59047.0,59046.0,0.171359]
[1728584942318,0.21043676,59047.0,59046.0,0.171359]
[1728584942541,0.04112746,59047.0,59046.0,0.46934562]
[1728584943723,0.04212746,59047.0,59046.0,0.47034562]
[1728584943944,0.0263002,59047.0,59046.0,0.47034562]
[1728584944167,0.04713195,59047.0,59046.0,0.47134562]
[1728584944839,0.04213195,59047.0,59046.0,0.47034562]
[1728584945050,0.04113195,59047.0,59046.0,0.46934562]
[1728584945515,0.04113195,59047.0,59046.0,0.47434562]
[1728584945793,0.04113195,59047.0,59046.0,0.46934562]
[1728584946042,0.04113195,59047.0,59046.0,0.47334562]
[1728584946935,0.04112774,59047.0,59046.0,0.47634562]
[1728584947183,0.04112774,59047.0,59046.0,0.47638562]
[1728584947406,0.01582754,59047.0,59046.0,0.47638562]
[1728584947872,0.01582754,59047.0,59046.0,0.178399]
[1728584948112,0.01582754,59047.0,59046.0,0.176399]
[1728584948339,0.01582754,59047.0,59046.0,0.00704]
[1728584948340,0.21046051,59047.0,59046.0,0.00704]
[1728584948576,0.21046051,59047.0,59046.0,0.173399]
[1728584949223,0.21046051,59047.0,59046.0,0.00404]
[1728584949661,0.21046051,59047.0,59046.0,0.173399]
[1728584949870,0.21046051,59047.0,59046.0,0.172399]
[1728584950007,0.21046051,59047.0,59046.0,0.173399]
[1728584950229,0.21046051,59047.0,59046.0,0.170399]
[1728584951173,0.21146051,59047.0,59046.0,0.169399]
[1728584951624,0.21046051,59047.0,59046.0,0.169399]
[1728584952312,0.04115121,59047.0,59046.0,0.46713194]
[1728584952561,0.01582754,59047.0,59046.0,0.46913194]
[1728584954248,0.00163,59048.0,59047.0,0.171356]
[1728584954473,0.01747234,59048.0,59047.0,0.171356]
[1728584954914,0.00163,59048.0,59047.0,0.171356]
[1728584955348,0.00163,59048.0,59047.0,0.17474268]
[1728584955549,0.00163,59048.0,59047.0,0.36194268]
[1728584955782,0.00163,59048.0,59047.0,0.41512829]
[1728584955976,0.00163,59048.0,59047.0,0.46570058]
[1728584956207,0.001626,59052.0,59047.0,0.5338653]
[1728584956417,0.001628,59059.0,59058.0,0.537625]
[1728584956631,0.001628,59059.0,59058.0,0.88592353]
[1728584956849,0.001628,59059.0,59058.0,0.91120632]
[1728584957285,0.001628,59059.0,59058.0,1.00466724]
[1728584957534,0.001628,59059.0,59058.0,1.10574217]
[1728584957784,0.001628,59059.0,59058.0,0.83535794]
[1728584958018,0.001628,59059.0,59058.0,0.537625]
[1728584958236,0.001628,59059.0,59058.0,0.83535794]
[1728584958454,0.001628,59059.0,59058.0,0.91116433]
[1728584958674,0.001628,59059.0,59058.0,0.84935794]